[Event "Titled Tuesday Blitz November 14 Early 2023"]
[White "Feliz Dotel, Dewar Bienvenido"]
[Black "Vargas, Mauricio"]
[WhiteFideId "6402801"]
[BlackFideId "4404572"]
[WhiteElo "2152"]
[BlackElo "1857"]
[Result "1-0"]
[Round "8"]
[TimeControl "180+1"]
[Date "2023.11.14"]
[WhiteClock "0:00:05"]
[BlackClock "0:00:06"]
[Board "171"]

1. d4 {[%clk 0:02:59]}  d5 {[%clk 0:02:59]} 2. e3 {[%clk 0:02:59]}  c6 {[%clk 0:03:00]} 3. Nf3 {[%clk 0:02:59]}  Bg4 {[%clk 0:02:57]} 4. h3 {[%clk 0:02:59]}  Bh5 {[%clk 0:02:57]} 5. g4 {[%clk 0:02:53]}  Bg6 {[%clk 0:02:57]} 6. Ne5 {[%clk 0:02:54]}  Nd7 {[%clk 0:02:52]} 7. h4 {[%clk 0:02:47]}  Nxe5 {[%clk 0:02:51]} 8. dxe5 {[%clk 0:02:47]}  h6 {[%clk 0:02:48]} 9. h5 {[%clk 0:02:43]}  Be4 {[%clk 0:02:46]} 10. f3 {[%clk 0:02:43]}  Bh7 {[%clk 0:02:45]} 11. Bd3 {[%clk 0:02:43]}  Bxd3 {[%clk 0:02:43]} 12. Qxd3 {[%clk 0:02:44]}  Qc7 {[%clk 0:02:43]} 13. f4 {[%clk 0:02:42]}  e6 {[%clk 0:02:41]} 14. Bd2 {[%clk 0:02:38]}  c5 {[%clk 0:02:35]} 15. Qb5+ {[%clk 0:02:35]}  Kd8 {[%clk 0:02:28]} 16. Bc3 {[%clk 0:02:21]}  Ne7 {[%clk 0:02:28]} 17. Nd2 {[%clk 0:02:10]}  Nc6 {[%clk 0:02:27]} 18. O-O-O {[%clk 0:02:04]}  c4 {[%clk 0:02:20]} 19. Nxc4 {[%clk 0:01:43]}  a6 {[%clk 0:02:19]} 20. Qb6 {[%clk 0:01:38]}  Kc8 {[%clk 0:02:16]} 21. Qxc7+ {[%clk 0:01:34]}  Kxc7 {[%clk 0:02:15]} 22. Na5 {[%clk 0:01:21]}  Bc5 {[%clk 0:02:08]} 23. Rhe1 {[%clk 0:01:12]}  Rhd8 {[%clk 0:02:04]} 24. Nb3 {[%clk 0:01:11]}  Ba7 {[%clk 0:01:57]} 25. Bd4 {[%clk 0:01:11]}  Nxd4 {[%clk 0:01:56]} 26. Nxd4 {[%clk 0:01:11]}  Rac8 {[%clk 0:01:51]} 27. c3 {[%clk 0:01:10]}  Kb8 {[%clk 0:01:50]} 28. Kd2 {[%clk 0:01:03]}  Rc4 {[%clk 0:01:40]} 29. f5 {[%clk 0:00:53]}  Re8 {[%clk 0:01:23]} 30. fxe6 {[%clk 0:00:51]}  fxe6 {[%clk 0:01:22]} 31. Rf1 {[%clk 0:00:51]}  Re7 {[%clk 0:01:20]} 32. Rf8+ {[%clk 0:00:50]}  Kc7 {[%clk 0:01:19]} 33. Rdf1 {[%clk 0:00:48]}  Kd7 {[%clk 0:01:06]} 34. Ra8 {[%clk 0:00:35]}  Bb6 {[%clk 0:01:05]} 35. Rb8 {[%clk 0:00:21]}  Kc7 {[%clk 0:00:56]} 36. Rff8 {[%clk 0:00:21]}  Ba7 {[%clk 0:00:43]} 37. Ra8 {[%clk 0:00:20]}  Kb6 {[%clk 0:00:40]} 38. Rae8 {[%clk 0:00:13]}  Rxe8 {[%clk 0:00:32]} 39. Rxe8 {[%clk 0:00:13]}  Kc7 {[%clk 0:00:28]} 40. Rxe6 {[%clk 0:00:13]}  Bb8 {[%clk 0:00:24]} 41. Rg6 {[%clk 0:00:10]}  Kd8 {[%clk 0:00:19]} 42. Rxg7 {[%clk 0:00:10]}  Bxe5 {[%clk 0:00:19]} 43. Rh7 {[%clk 0:00:08]}  Rc7 {[%clk 0:00:14]} 44. Ne6+ {[%clk 0:00:07]}  Kc8 {[%clk 0:00:14]} 45. Nxc7 {[%clk 0:00:06]}  Bxc7 {[%clk 0:00:15]} 46. Rxh6 {[%clk 0:00:07]}  Kd7 {[%clk 0:00:13]} 47. Rf6 {[%clk 0:00:06]}  Bd8 {[%clk 0:00:11]} 48. Rf5 {[%clk 0:00:05]}  Kd6 {[%clk 0:00:10]} 49. h6 {[%clk 0:00:05]}  Ke6 {[%clk 0:00:05]} 50. h7 {[%clk 0:00:05]}  Bf6 {[%clk 0:00:05]} 51. Rxf6+ {[%clk 0:00:06]}  Kxf6 {[%clk 0:00:05]} 52. h8=Q+ {[%clk 0:00:07]}  Kg6 {[%clk 0:00:05]} 53. Qh5+ {[%clk 0:00:06]}  Kf6 {[%clk 0:00:05]} 54. g5+ {[%clk 0:00:07]}  Kf5 {[%clk 0:00:04]} 55. g6+ {[%clk 0:00:07]}  Ke4 {[%clk 0:00:05]} 56. g7 {[%clk 0:00:05]}  b5 {[%clk 0:00:05]} 57. g8=Q {[%clk 0:00:05]}  b4 {[%clk 0:00:06]} 58. Qe6# {[%clk 0:00:05]} 1-0


[Site "https://www.chess.com"]

[Event "Titled Tuesday Blitz November 14 Early 2023"]
[White "Hartikainen, Jarmo"]
[Black "Villafane Gomez, Jaime"]
[WhiteFideId "503134"]
[BlackFideId "4426517"]
[WhiteElo "2149"]
[BlackElo "1739"]
[Result "1-0"]
[Round "8"]
[TimeControl "180+1"]
[Date "2023.11.14"]
[WhiteClock "0:00:52"]
[BlackClock "0:00:06"]
[Board "172"]

1. e4 {[%clk 0:03:00]}  e6 {[%clk 0:02:58]} 2. d4 {[%clk 0:03:00]}  d5 {[%clk 0:02:58]} 3. Nd2 {[%clk 0:03:01]}  Nf6 {[%clk 0:02:54]} 4. e5 {[%clk 0:03:01]}  Nfd7 {[%clk 0:02:54]} 5. Bd3 {[%clk 0:03:01]}  c5 {[%clk 0:02:53]} 6. c3 {[%clk 0:03:01]}  Nc6 {[%clk 0:02:54]} 7. Ne2 {[%clk 0:03:01]}  Qb6 {[%clk 0:02:53]} 8. Nf3 {[%clk 0:02:59]}  cxd4 {[%clk 0:02:49]} 9. cxd4 {[%clk 0:02:59]}  f6 {[%clk 0:02:49]} 10. exf6 {[%clk 0:02:59]}  Nxf6 {[%clk 0:02:49]} 11. a3 {[%clk 0:02:51]}  Bd6 {[%clk 0:02:43]} 12. Qc2 {[%clk 0:02:46]}  Bd7 {[%clk 0:02:32]} 13. Bg5 {[%clk 0:02:42]}  Rc8 {[%clk 0:02:12]} 14. Qb1 {[%clk 0:02:39]}  Qd8 {[%clk 0:01:36]} 15. O-O {[%clk 0:02:30]}  Qe7 {[%clk 0:01:28]} 16. Re1 {[%clk 0:02:24]}  O-O {[%clk 0:01:15]} 17. Ng3 {[%clk 0:02:23]}  Qf7 {[%clk 0:01:15]} 18. b4 {[%clk 0:02:07]}  a6 {[%clk 0:01:13]} 19. Qb2 {[%clk 0:01:57]}  Ne7 {[%clk 0:01:09]} 20. Rac1 {[%clk 0:01:49]}  Nf5 {[%clk 0:01:00]} 21. Qb1 {[%clk 0:01:36]}  Nxg3 {[%clk 0:00:56]} 22. hxg3 {[%clk 0:01:33]}  g6 {[%clk 0:00:43]} 23. Bh6 {[%clk 0:01:10]}  Rfe8 {[%clk 0:00:40]} 24. Ng5 {[%clk 0:01:08]}  Qe7 {[%clk 0:00:35]} 25. Bxg6 {[%clk 0:01:00]}  hxg6 {[%clk 0:00:32]} 26. Qxg6+ {[%clk 0:00:59]}  Kh8 {[%clk 0:00:20]} 27. Nf7+ {[%clk 0:00:55]}  Qxf7 {[%clk 0:00:19]} 28. Qxf7 {[%clk 0:00:56]}  Re7 {[%clk 0:00:07]} 29. Qxf6+ {[%clk 0:00:52]}  Kh7 {[%clk 0:00:06]} 1-0


[Site "https://www.chess.com"]

[Event "Titled Tuesday Blitz November 14 Early 2023"]
[White "Clawitter, Craig"]
[Black "Vila Dupla, Aurelio"]
[WhiteFideId "2023105"]
[BlackFideId "2203383"]
[WhiteElo "2289"]
[BlackElo "2189"]
[Result "1/2-1/2"]
[Round "8"]
[TimeControl "180+1"]
[Date "2023.11.14"]
[WhiteClock "0:00:29"]
[BlackClock "0:01:11"]
[Board "174"]

1. e4 {[%clk 0:02:55]}  c5 {[%clk 0:02:59]} 2. Nf3 {[%clk 0:02:55]}  d6 {[%clk 0:02:58]} 3. d4 {[%clk 0:02:55]}  cxd4 {[%clk 0:02:59]} 4. Nxd4 {[%clk 0:02:56]}  Nf6 {[%clk 0:02:59]} 5. Nc3 {[%clk 0:02:54]}  g6 {[%clk 0:02:59]} 6. Be3 {[%clk 0:02:54]}  Bg7 {[%clk 0:02:59]} 7. f3 {[%clk 0:02:54]}  O-O {[%clk 0:02:59]} 8. Qd2 {[%clk 0:02:55]}  Nc6 {[%clk 0:02:59]} 9. Bc4 {[%clk 0:02:55]}  Bd7 {[%clk 0:02:59]} 10. O-O-O {[%clk 0:02:55]}  Qa5 {[%clk 0:02:58]} 11. Bb3 {[%clk 0:02:54]}  Rfc8 {[%clk 0:02:56]} 12. Kb1 {[%clk 0:02:53]}  Ne5 {[%clk 0:02:56]} 13. h4 {[%clk 0:02:51]}  Rc5 {[%clk 0:02:51]} 14. h5 {[%clk 0:02:30]}  Rxc3 {[%clk 0:02:46]} 15. bxc3 {[%clk 0:02:22]}  Nxh5 {[%clk 0:02:45]} 16. Bh6 {[%clk 0:02:21]}  Bxh6 {[%clk 0:02:35]} 17. Qxh6 {[%clk 0:02:21]}  Qxc3 {[%clk 0:02:36]} 18. g4 {[%clk 0:02:16]}  Nf6 {[%clk 0:02:32]} 19. g5 {[%clk 0:02:02]}  Nh5 {[%clk 0:02:30]} 20. Rxh5 {[%clk 0:02:01]}  gxh5 {[%clk 0:02:30]} 21. f4 {[%clk 0:01:02]}  Nc4 {[%clk 0:02:04]} 22. Bxc4 {[%clk 0:01:01]}  Qxc4 {[%clk 0:02:04]} 23. f5 {[%clk 0:00:56]}  Qb4+ {[%clk 0:01:37]} 24. Kc1 {[%clk 0:00:31]}  Qa3+ {[%clk 0:01:22]} 25. Kb1 {[%clk 0:00:30]}  Qb4+ {[%clk 0:01:21]} 26. Kc1 {[%clk 0:00:29]}  Qa3+ {[%clk 0:01:17]} 27. Kb1 {[%clk 0:00:29]}  Qb4+ {[%clk 0:01:11]} 1/2-1/2


[Site "https://www.chess.com"]

[Event "Titled Tuesday Blitz November 14 Early 2023"]
[White "Nakamura, Hikaru"]
[Black "Sychev, Klementy"]
[WhiteFideId "2016192"]
[BlackFideId "4114060"]
[WhiteElo "3333"]
[BlackElo "2942"]
[Result "1-0"]
[Round "9"]
[TimeControl "180+1"]
[Date "2023.11.14"]
[WhiteClock "0:00:24"]
[BlackClock "0:00:00"]
[Board "1"]

1. Nf3 {[%clk 0:03:00]}  Nf6 {[%clk 0:02:59]} 2. e3 {[%clk 0:03:00]}  d5 {[%clk 0:02:57]} 3. b3 {[%clk 0:02:58]}  c5 {[%clk 0:02:46]} 4. Bb2 {[%clk 0:02:58]}  e6 {[%clk 0:02:45]} 5. g3 {[%clk 0:02:57]}  Nc6 {[%clk 0:02:43]} 6. Bg2 {[%clk 0:02:58]}  Be7 {[%clk 0:02:39]} 7. O-O {[%clk 0:02:58]}  O-O {[%clk 0:02:39]} 8. c4 {[%clk 0:02:58]}  d4 {[%clk 0:02:26]} 9. exd4 {[%clk 0:02:58]}  cxd4 {[%clk 0:02:27]} 10. Re1 {[%clk 0:02:57]}  a5 {[%clk 0:02:18]} 11. Na3 {[%clk 0:02:50]}  a4 {[%clk 0:02:11]} 12. d3 {[%clk 0:02:25]}  Re8 {[%clk 0:01:49]} 13. Nb5 {[%clk 0:02:11]}  Bb4 {[%clk 0:01:29]} 14. Re2 {[%clk 0:02:08]}  Bc5 {[%clk 0:01:20]} 15. bxa4 {[%clk 0:02:01]}  e5 {[%clk 0:01:19]} 16. Nd2 {[%clk 0:01:58]}  Bg4 {[%clk 0:01:02]} 17. Bf3 {[%clk 0:01:51]}  Bxf3 {[%clk 0:00:45]} 18. Nxf3 {[%clk 0:01:52]}  e4 {[%clk 0:00:43]} 19. Nd2 {[%clk 0:01:51]}  e3 {[%clk 0:00:19]} 20. Nb3 {[%clk 0:01:51]}  Ng4 {[%clk 0:00:12]} 21. Nxc5 {[%clk 0:01:14]}  exf2+ {[%clk 0:00:11]} 22. Rxf2 {[%clk 0:01:14]}  Nxf2 {[%clk 0:00:11]} 23. Kxf2 {[%clk 0:01:15]}  Qg5 {[%clk 0:00:11]} 24. Ne4 {[%clk 0:01:13]}  Qe3+ {[%clk 0:00:12]} 25. Kg2 {[%clk 0:01:13]}  Ne5 {[%clk 0:00:07]} 26. Nf2 {[%clk 0:01:03]}  Rad8 {[%clk 0:00:05]} 27. Bc1 {[%clk 0:01:01]}  Nxc4 {[%clk 0:00:05]} 28. Bxe3 {[%clk 0:00:40]}  Nxe3+ {[%clk 0:00:04]} 29. Kg1 {[%clk 0:00:41]}  Nxd1 {[%clk 0:00:04]} 30. Rxd1 {[%clk 0:00:42]}  Re2 {[%clk 0:00:04]} 31. a3 {[%clk 0:00:42]}  g6 {[%clk 0:00:04]} 32. Kf1 {[%clk 0:00:42]}  Rb2 {[%clk 0:00:03]} 33. Re1 {[%clk 0:00:39]}  Kf8 {[%clk 0:00:03]} 34. Re2 {[%clk 0:00:38]}  Rb1+ {[%clk 0:00:02]} 35. Kg2 {[%clk 0:00:39]}  Re8 {[%clk 0:00:02]} 36. Rc2 {[%clk 0:00:36]}  Rb3 {[%clk 0:00:02]} 37. Ra2 {[%clk 0:00:31]}  Ra8 {[%clk 0:00:02]} 38. Nxd4 {[%clk 0:00:31]}  Rb1 {[%clk 0:00:02]} 39. Ne2 {[%clk 0:00:31]}  Re1 {[%clk 0:00:01]} 40. Nc3 {[%clk 0:00:30]}  Rc1 {[%clk 0:00:01]} 41. Nb5 {[%clk 0:00:25]}  Rxa4 {[%clk 0:00:01]} 42. Ne4 {[%clk 0:00:26]}  Kg7 {[%clk 0:00:01]} 43. Ned6 {[%clk 0:00:24]}  Ra5 {[%clk 0:00:02]} 44. Re2 {[%clk 0:00:25]}  Ra4 {[%clk 0:00:02]} 45. Re7 {[%clk 0:00:24]}  Rc2+ {[%clk 0:00:02]} 46. Kf3 {[%clk 0:00:25]}  Kh6 {[%clk 0:00:02]} 47. Nxf7+ {[%clk 0:00:25]}  Kg7 {[%clk 0:00:02]} 48. Nfd6+ {[%clk 0:00:24]}  Kf6 {[%clk 0:00:02]} 49. Rxh7 {[%clk 0:00:24]}  Ra6 {[%clk 0:00:02]} 50. Ne4+ {[%clk 0:00:24]}  Kf5 {[%clk 0:00:00]} 51. Nd4+ {[%clk 0:00:24]} 1-0


[Site "https://www.chess.com"]

[Event "Titled Tuesday Blitz November 14 Early 2023"]
[White "Alekseenko, Kirill"]
[Black "Terry, Renato"]
[WhiteFideId "4135539"]
[BlackFideId "3803457"]
[WhiteElo "2941"]
[BlackElo "3024"]
[Result "1-0"]
[Round "9"]
[TimeControl "180+1"]
[Date "2023.11.14"]
[WhiteClock "0:00:07"]
[BlackClock "0:00:02"]
[Board "4"]

1. e4 {[%clk 0:03:00]}  g6 {[%clk 0:03:00]} 2. d4 {[%clk 0:02:59]}  Bg7 {[%clk 0:03:01]} 3. Nc3 {[%clk 0:02:59]}  c6 {[%clk 0:03:01]} 4. f4 {[%clk 0:02:55]}  d5 {[%clk 0:03:01]} 5. e5 {[%clk 0:02:55]}  Nh6 {[%clk 0:03:01]} 6. Nf3 {[%clk 0:02:54]}  Bg4 {[%clk 0:03:00]} 7. Be2 {[%clk 0:02:53]}  f6 {[%clk 0:03:00]} 8. O-O {[%clk 0:02:52]}  O-O {[%clk 0:03:00]} 9. h3 {[%clk 0:02:36]}  Bxf3 {[%clk 0:03:00]} 10. Bxf3 {[%clk 0:02:37]}  e6 {[%clk 0:02:57]} 11. Ne2 {[%clk 0:02:32]}  Nf5 {[%clk 0:02:53]} 12. g3 {[%clk 0:02:27]}  fxe5 {[%clk 0:02:50]} 13. dxe5 {[%clk 0:02:21]}  Qb6+ {[%clk 0:02:46]} 14. Kg2 {[%clk 0:02:19]}  Na6 {[%clk 0:02:42]} 15. c3 {[%clk 0:02:15]}  Rad8 {[%clk 0:02:21]} 16. a4 {[%clk 0:02:09]}  Nc5 {[%clk 0:02:14]} 17. a5 {[%clk 0:02:06]}  Qb5 {[%clk 0:02:02]} 18. Nd4 {[%clk 0:01:59]}  Nxd4 {[%clk 0:01:59]} 19. cxd4 {[%clk 0:02:00]}  Nb3 {[%clk 0:01:56]} 20. Ra3 {[%clk 0:01:51]}  Nxa5 {[%clk 0:01:48]} 21. Qa4 {[%clk 0:01:41]}  Qxa4 {[%clk 0:00:46]} 22. Rxa4 {[%clk 0:01:41]}  b6 {[%clk 0:00:47]} 23. Be2 {[%clk 0:01:29]}  Ra8 {[%clk 0:00:38]} 24. Bd2 {[%clk 0:01:23]}  Nb3 {[%clk 0:00:35]} 25. Be3 {[%clk 0:01:23]}  a5 {[%clk 0:00:35]} 26. Bd1 {[%clk 0:01:09]}  b5 {[%clk 0:00:34]} 27. Ra3 {[%clk 0:01:09]}  a4 {[%clk 0:00:34]} 28. Bxb3 {[%clk 0:01:07]}  axb3 {[%clk 0:00:35]} 29. Rfa1 {[%clk 0:01:07]}  Rxa3 {[%clk 0:00:32]} 30. Rxa3 {[%clk 0:01:08]}  Rc8 {[%clk 0:00:30]} 31. Kf3 {[%clk 0:01:04]}  Bf8 {[%clk 0:00:30]} 32. Ra1 {[%clk 0:00:52]}  Rc7 {[%clk 0:00:24]} 33. Ke2 {[%clk 0:00:52]}  c5 {[%clk 0:00:19]} 34. dxc5 {[%clk 0:00:50]}  Bxc5 {[%clk 0:00:20]} 35. Rc1 {[%clk 0:00:50]}  Bb6 {[%clk 0:00:20]} 36. Rxc7 {[%clk 0:00:47]}  Bxc7 {[%clk 0:00:21]} 37. Kd3 {[%clk 0:00:40]}  Ba5 {[%clk 0:00:19]} 38. Bd2 {[%clk 0:00:37]}  Bb6 {[%clk 0:00:07]} 39. Be3 {[%clk 0:00:32]}  Ba5 {[%clk 0:00:07]} 40. g4 {[%clk 0:00:32]}  Kf7 {[%clk 0:00:06]} 41. Bc5 {[%clk 0:00:32]}  h5 {[%clk 0:00:06]} 42. Be3 {[%clk 0:00:22]}  hxg4 {[%clk 0:00:06]} 43. hxg4 {[%clk 0:00:22]}  Ke8 {[%clk 0:00:06]} 44. Bd2 {[%clk 0:00:20]}  b4 {[%clk 0:00:05]} 45. Be3 {[%clk 0:00:20]}  Kd7 {[%clk 0:00:05]} 46. Bc5 {[%clk 0:00:20]}  Kc6 {[%clk 0:00:05]} 47. Bf8 {[%clk 0:00:21]}  Kb5 {[%clk 0:00:05]} 48. Be7 {[%clk 0:00:19]}  Bb6 {[%clk 0:00:05]} 49. Bf8 {[%clk 0:00:15]}  Bf2 {[%clk 0:00:05]} 50. Be7 {[%clk 0:00:13]}  Bg3 {[%clk 0:00:05]} 51. Bg5 {[%clk 0:00:13]}  Bf2 {[%clk 0:00:05]} 52. Bf6 {[%clk 0:00:13]}  Bc5 {[%clk 0:00:05]} 53. Bg5 {[%clk 0:00:13]}  Kc6 {[%clk 0:00:05]} 54. Bh4 {[%clk 0:00:13]}  Bb6 {[%clk 0:00:05]} 55. Be1 {[%clk 0:00:13]}  Bc5 {[%clk 0:00:05]} 56. Bd2 {[%clk 0:00:13]}  Kb5 {[%clk 0:00:06]} 57. Be1 {[%clk 0:00:13]}  Bb6 {[%clk 0:00:05]} 58. Bh4 {[%clk 0:00:13]}  Ba7 {[%clk 0:00:03]} 59. Be7 {[%clk 0:00:12]}  Ka4 {[%clk 0:00:03]} 60. f5 {[%clk 0:00:10]}  exf5 {[%clk 0:00:03]} 61. gxf5 {[%clk 0:00:10]}  gxf5 {[%clk 0:00:04]} 62. e6 {[%clk 0:00:08]}  Kb5 {[%clk 0:00:04]} 63. Bxb4 {[%clk 0:00:05]}  Kc6 {[%clk 0:00:04]} 64. Bf8 {[%clk 0:00:03]}  Bb6 {[%clk 0:00:04]} 65. Bb4 {[%clk 0:00:02]}  Bf2 {[%clk 0:00:04]} 66. Ba3 {[%clk 0:00:03]}  Bh4 {[%clk 0:00:03]} 67. Kd4 {[%clk 0:00:03]}  Bf6+ {[%clk 0:00:03]} 68. Ke3 {[%clk 0:00:04]}  Be5 {[%clk 0:00:03]} 69. Kd3 {[%clk 0:00:03]}  f4 {[%clk 0:00:04]} 70. Ke2 {[%clk 0:00:04]}  Bd6 {[%clk 0:00:03]} 71. e7 {[%clk 0:00:03]}  Bxe7 {[%clk 0:00:02]} 72. Bxe7 {[%clk 0:00:03]}  d4 {[%clk 0:00:02]} 73. Bf6 {[%clk 0:00:03]}  Kd5 {[%clk 0:00:02]} 74. Kd3 {[%clk 0:00:04]}  f3 {[%clk 0:00:02]} 75. Bxd4 {[%clk 0:00:05]}  Kc6 {[%clk 0:00:02]} 76. Ke3 {[%clk 0:00:05]}  Kd5 {[%clk 0:00:02]} 77. Bc3 {[%clk 0:00:05]}  Kc4 {[%clk 0:00:03]} 78. Kxf3 {[%clk 0:00:06]}  Kd3 {[%clk 0:00:02]} 79. Kf4 {[%clk 0:00:07]} 1-0


[Site "https://www.chess.com"]

[Event "Titled Tuesday Blitz November 14 Early 2023"]
[White "Niemann, Hans Moke"]
[Black "Baskakov, Egor"]
[WhiteFideId "2093596"]
[BlackFideId "24197866"]
[WhiteElo "3040"]
[BlackElo "2920"]
[Result "1-0"]
[Round "9"]
[TimeControl "180+1"]
[Date "2023.11.14"]
[WhiteClock "0:00:10"]
[BlackClock "0:00:06"]
[Board "5"]

1. e4 {[%clk 0:03:00]}  c5 {[%clk 0:02:58]} 2. Nf3 {[%clk 0:02:59]}  Nf6 {[%clk 0:02:58]} 3. e5 {[%clk 0:02:58]}  Nd5 {[%clk 0:02:59]} 4. Nc3 {[%clk 0:02:58]}  e6 {[%clk 0:03:00]} 5. g3 {[%clk 0:02:52]}  Nc6 {[%clk 0:02:58]} 6. Bg2 {[%clk 0:02:52]}  d6 {[%clk 0:02:52]} 7. exd6 {[%clk 0:02:49]}  Bxd6 {[%clk 0:02:53]} 8. O-O {[%clk 0:02:48]}  O-O {[%clk 0:02:44]} 9. d3 {[%clk 0:02:44]}  Nxc3 {[%clk 0:02:42]} 10. bxc3 {[%clk 0:02:44]}  Qc7 {[%clk 0:02:42]} 11. Ng5 {[%clk 0:02:42]}  h6 {[%clk 0:02:41]} 12. Ne4 {[%clk 0:02:43]}  Be7 {[%clk 0:02:41]} 13. Re1 {[%clk 0:02:31]}  b6 {[%clk 0:02:39]} 14. Qh5 {[%clk 0:02:23]}  Bb7 {[%clk 0:02:24]} 15. h4 {[%clk 0:01:57]}  Rae8 {[%clk 0:01:59]} 16. Bd2 {[%clk 0:01:38]}  Bd8 {[%clk 0:01:12]} 17. g4 {[%clk 0:01:30]}  f5 {[%clk 0:01:01]} 18. gxf5 {[%clk 0:01:26]}  Qe5 {[%clk 0:00:48]} 19. f4 {[%clk 0:01:04]}  Qxf5 {[%clk 0:00:40]} 20. Qxf5 {[%clk 0:01:03]}  exf5 {[%clk 0:00:41]} 21. Nd6 {[%clk 0:01:04]}  Rxe1+ {[%clk 0:00:41]} 22. Rxe1 {[%clk 0:01:04]}  Ba8 {[%clk 0:00:35]} 23. h5 {[%clk 0:01:03]}  Bh4 {[%clk 0:00:28]} 24. Re2 {[%clk 0:00:59]}  g6 {[%clk 0:00:19]} 25. hxg6 {[%clk 0:00:51]}  Kg7 {[%clk 0:00:20]} 26. Re6 {[%clk 0:00:16]}  Ne7 {[%clk 0:00:07]} 27. Bxa8 {[%clk 0:00:15]}  Rxa8 {[%clk 0:00:08]} 28. c4 {[%clk 0:00:14]}  Rf8 {[%clk 0:00:07]} 29. Bc3+ {[%clk 0:00:14]}  Kg8 {[%clk 0:00:07]} 30. g7 {[%clk 0:00:11]}  Rd8 {[%clk 0:00:06]} 31. Rxh6 {[%clk 0:00:10]} 1-0


[Site "https://www.chess.com"]

[Event "Titled Tuesday Blitz November 14 Early 2023"]
[White "Martinez Alcantara, Jose Eduardo"]
[Black "Chigaev, Maksim"]
[WhiteFideId "3805662"]
[BlackFideId "4108116"]
[WhiteElo "3032"]
[BlackElo "2918"]
[Result "1/2-1/2"]
[Round "9"]
[TimeControl "180+1"]
[Date "2023.11.14"]
[WhiteClock "0:00:03"]
[BlackClock "0:00:04"]
[Board "6"]

1. e4 {[%clk 0:03:00]}  e5 {[%clk 0:02:57]} 2. Bc4 {[%clk 0:02:59]}  Nf6 {[%clk 0:02:55]} 3. d3 {[%clk 0:02:59]}  Bc5 {[%clk 0:02:55]} 4. Nc3 {[%clk 0:02:58]}  d6 {[%clk 0:02:52]} 5. h3 {[%clk 0:02:54]}  Be6 {[%clk 0:02:50]} 6. Bb3 {[%clk 0:02:50]}  Nc6 {[%clk 0:02:46]} 7. Be3 {[%clk 0:02:50]}  Bxe3 {[%clk 0:02:41]} 8. fxe3 {[%clk 0:02:51]}  d5 {[%clk 0:02:41]} 9. exd5 {[%clk 0:02:50]}  Nxd5 {[%clk 0:02:42]} 10. Qf3 {[%clk 0:02:24]}  Nxc3 {[%clk 0:02:30]} 11. bxc3 {[%clk 0:02:25]}  Qh4+ {[%clk 0:02:15]} 12. Qf2 {[%clk 0:02:08]}  Qe7 {[%clk 0:02:12]} 13. e4 {[%clk 0:02:03]}  O-O-O {[%clk 0:02:02]} 14. Nf3 {[%clk 0:02:00]}  f6 {[%clk 0:01:34]} 15. O-O {[%clk 0:01:53]}  Kb8 {[%clk 0:01:26]} 16. Bxe6 {[%clk 0:01:43]}  Qxe6 {[%clk 0:01:25]} 17. a4 {[%clk 0:01:44]}  Na5 {[%clk 0:01:22]} 18. Rab1 {[%clk 0:01:33]}  Ka8 {[%clk 0:01:19]} 19. Kh1 {[%clk 0:01:27]}  b6 {[%clk 0:01:16]} 20. Nh4 {[%clk 0:01:24]}  Rd7 {[%clk 0:01:13]} 21. c4 {[%clk 0:01:18]}  Qc6 {[%clk 0:01:02]} 22. Ra1 {[%clk 0:01:17]}  Qc5 {[%clk 0:00:57]} 23. Qg3 {[%clk 0:01:07]}  Nc6 {[%clk 0:00:52]} 24. Nf5 {[%clk 0:01:07]}  Nb4 {[%clk 0:00:43]} 25. Ne3 {[%clk 0:00:59]}  a5 {[%clk 0:00:42]} 26. Qf2 {[%clk 0:00:56]}  Rhd8 {[%clk 0:00:40]} 27. Qe2 {[%clk 0:00:56]}  c6 {[%clk 0:00:35]} 28. Rab1 {[%clk 0:00:54]}  Ka7 {[%clk 0:00:35]} 29. Rfd1 {[%clk 0:00:54]}  g6 {[%clk 0:00:33]} 30. Ng4 {[%clk 0:00:53]}  Rd6 {[%clk 0:00:33]} 31. Rf1 {[%clk 0:00:52]}  Rf8 {[%clk 0:00:26]} 32. Rf3 {[%clk 0:00:51]}  h5 {[%clk 0:00:26]} 33. Ne3 {[%clk 0:00:47]}  Na2 {[%clk 0:00:06]} 34. Qe1 {[%clk 0:00:47]}  Nb4 {[%clk 0:00:05]} 35. Qg3 {[%clk 0:00:43]}  Rg8 {[%clk 0:00:05]} 36. Rbf1 {[%clk 0:00:42]}  Ka6 {[%clk 0:00:04]} 37. Rxf6 {[%clk 0:00:40]}  h4 {[%clk 0:00:04]} 38. Qe1 {[%clk 0:00:38]}  Rxf6 {[%clk 0:00:05]} 39. Rxf6 {[%clk 0:00:39]}  Rf8 {[%clk 0:00:06]} 40. Rxf8 {[%clk 0:00:24]}  Qxf8 {[%clk 0:00:05]} 41. Qxh4 {[%clk 0:00:25]}  Qf4 {[%clk 0:00:06]} 42. Qd8 {[%clk 0:00:17]}  Kb7 {[%clk 0:00:06]} 43. Qd7+ {[%clk 0:00:17]}  Kb8 {[%clk 0:00:06]} 44. Qd8+ {[%clk 0:00:11]}  Kb7 {[%clk 0:00:06]} 45. Qe7+ {[%clk 0:00:12]}  Kb8 {[%clk 0:00:06]} 46. Qe8+ {[%clk 0:00:10]}  Kb7 {[%clk 0:00:06]} 47. Qe7+ {[%clk 0:00:10]}  Kb8 {[%clk 0:00:06]} 48. Qd6+ {[%clk 0:00:08]}  Kb7 {[%clk 0:00:06]} 49. Ng4 {[%clk 0:00:05]}  Qf1+ {[%clk 0:00:06]} 50. Kh2 {[%clk 0:00:05]}  Qf4+ {[%clk 0:00:07]} 51. Kg1 {[%clk 0:00:06]}  Qc1+ {[%clk 0:00:06]} 52. Kf2 {[%clk 0:00:02]}  Qxc2+ {[%clk 0:00:06]} 53. Ke3 {[%clk 0:00:02]}  Qc1+ {[%clk 0:00:06]} 54. Ke2 {[%clk 0:00:03]}  Qc2+ {[%clk 0:00:04]} 55. Ke3 {[%clk 0:00:02]}  Qc1+ {[%clk 0:00:03]} 56. Kf2 {[%clk 0:00:02]}  Qd2+ {[%clk 0:00:03]} 57. Kf3 {[%clk 0:00:02]}  Nxd3 {[%clk 0:00:02]} 58. Qd7+ {[%clk 0:00:02]}  Kb8 {[%clk 0:00:02]} 59. Qd8+ {[%clk 0:00:02]}  Kb7 {[%clk 0:00:03]} 60. Qd7+ {[%clk 0:00:02]}  Kb8 {[%clk 0:00:04]} 61. Qe8+ {[%clk 0:00:02]}  Ka7 {[%clk 0:00:03]} 62. Qd7+ {[%clk 0:00:03]}  Kb8 {[%clk 0:00:04]} 1/2-1/2


[Site "https://www.chess.com"]